[Event "NJSK 2024 Cm"]
[Site "Groningen, Netherlands"]
[Date "2024.04.29"]
[Round "3.4"]
[White "Ganeshram, Niranjana"]
[Black "Zhang, Jinchen"]
[Result "1/2-1/2"]
[TimeControl "90min/40moves + 30min + 30sec/move"]
[WhiteElo "1566"]
[BlackElo "1348"]

1. d4 {[%clk 01:30:59]} {[%emt 00:00:02]} Nf6 {[%clk 01:30:48]} {[%emt
00:00:12]} 2. Bf4 {[%clk 01:31:12]} {[%emt 00:00:17]} g6 {[%clk 01:30:58]}
{[%emt 00:00:19]} 3. e3 {[%clk 01:31:25]} {[%emt 00:00:17]} Bg7 {[%clk
01:30:52]} {[%emt 00:00:36]} 4. Nf3 {[%clk 01:31:42]} {[%emt 00:00:13]} d6
{[%clk 01:30:40]} {[%emt 00:00:43]} 5. Nbd2 {[%clk 01:31:51]} {[%emt 00:00:20]}
Nc6 {[%clk 01:30:25]} {[%emt 00:00:46]} 6. Bb5 {[%clk 01:31:34]} {[%emt
00:00:46]} Bd7 {[%clk 01:30:23]} {[%emt 00:00:32]} 7. O-O {[%clk 01:31:38]}
{[%emt 00:00:26]} a6 {[%clk 01:30:27]} {[%emt 00:00:27]} 8. Ba4 {[%clk
01:32:01]} {[%emt 00:00:07]} O-O {[%clk 01:30:21]} {[%emt 00:00:35]} 9. e4
{[%clk 01:30:18]} {[%emt 00:02:13]} Nxd4 {[%clk 01:28:28]} {[%emt 00:02:23]} 10.
Bxd7 {[%clk 01:29:28]} {[%emt 00:01:21]} Nxf3+ {[%clk 01:28:43]} {[%emt
00:00:15]} 11. Nxf3 {[%clk 01:29:04]} {[%emt 00:00:54]} Nxd7 {[%clk 01:28:07]}
{[%emt 00:01:07]} 12. Rb1 {[%clk 01:28:33]} {[%emt 00:01:00]} Ne5 {[%clk
01:27:26]} {[%emt 00:01:10]} 13. Bxe5 {[%clk 01:27:36]} {[%emt 00:01:27]} Bxe5
{[%clk 01:26:59]} {[%emt 00:00:58]} 14. Qe2 {[%clk 01:26:58]} {[%emt 00:01:07]}
Bg7 {[%clk 01:26:19]} {[%emt 00:01:10]} 15. Rfd1 {[%clk 01:25:51]} {[%emt
00:01:38]} e6 {[%clk 01:25:51]} {[%emt 00:00:58]} 16. e5 {[%clk 01:25:53]}
{[%emt 00:00:29]} d5 {[%clk 01:25:07]} {[%emt 00:01:13]} 17. c4 {[%clk
01:25:58]} {[%emt 00:00:26]} c6 {[%clk 01:25:08]} {[%emt 00:00:27]} 18. b3
{[%clk 01:25:08]} {[%emt 00:01:20]} Qe7 {[%clk 01:24:10]} {[%emt 00:01:28]} 19.
cxd5 {[%clk 01:24:49]} {[%emt 00:00:50]} exd5 {[%clk 01:23:46]} {[%emt
00:00:53]} 20. Re1 {[%clk 01:23:10]} {[%emt 00:02:09]} Rae8 {[%clk 01:22:36]}
{[%emt 00:01:41]} 21. Qb2 {[%clk 01:21:09]} {[%emt 00:02:31]} Qc7 {[%clk
01:20:53]} {[%emt 00:02:13]} 22. Rbc1 {[%clk 01:20:00]} {[%emt 00:01:39]} Re7
{[%clk 01:20:49]} {[%emt 00:00:33]} 23. Rc2 {[%clk 01:19:18]} {[%emt 00:01:13]}
Rfe8 {[%clk 01:19:51]} {[%emt 00:01:28]} 24. Rce2 {[%clk 01:19:35]} {[%emt
00:00:13]} c5 {[%clk 01:18:47]} {[%emt 00:01:34]} 25. Qd2 {[%clk 01:13:28]}
{[%emt 00:06:37]} d4 {[%clk 01:17:35]} {[%emt 00:01:42]} 26. Qf4 {[%clk
01:12:20]} {[%emt 00:01:38]} f6 {[%clk 01:14:57]} {[%emt 00:03:08]} 27. Qe4
{[%clk 01:09:21]} {[%emt 00:03:28]} fxe5 {[%clk 01:14:06]} {[%emt 00:01:21]} 28.
Qd5+ {[%clk 01:09:18]} {[%emt 00:00:34]} Kh8 {[%clk 01:12:50]} {[%emt
00:01:45]} 29. Rc2 {[%clk 01:07:51]} {[%emt 00:01:58]} b6 {[%clk 01:11:47]}
{[%emt 00:01:34]} 30. b4 {[%clk 01:06:59]} {[%emt 00:01:21]} e4 {[%clk
01:08:33]} {[%emt 00:03:43]} 31. Ng5 {[%clk 01:04:16]} {[%emt 00:03:13]} Be5
{[%clk 01:07:58]} {[%emt 00:01:05]} 32. g3 {[%clk 01:02:39]} {[%emt 00:02:08]}
Bd6 {[%clk 01:06:36]} {[%emt 00:01:51]} 33. Rxe4 {[%clk 01:00:39]} {[%emt
00:02:31]} Rxe4 {[%clk 01:06:01]} {[%emt 00:01:04]} 34. Nxe4 {[%clk 01:00:44]}
{[%emt 00:00:26]} Rd8 {[%clk 01:05:18]} {[%emt 00:01:13]} 35. Nxd6 {[%clk
01:00:30]} {[%emt 00:00:44]} Qxd6 {[%clk 01:04:24]} {[%emt 00:01:24]} 36. Qxd6
{[%clk 01:00:16]} {[%emt 00:00:44]} Rxd6 {[%clk 01:04:28]} {[%emt 00:00:26]} 37.
bxc5 {[%clk 01:00:27]} {[%emt 00:00:19]} Rc6 {[%clk 01:03:55]} {[%emt
00:01:03]} 38. Kf1 {[%clk 01:00:37]} {[%emt 00:00:20]} Rxc5 {[%clk 01:03:59]}
{[%emt 00:00:25]} 39. Rd2 {[%clk 00:59:19]} {[%emt 00:01:49]} Rd5 {[%clk
01:02:27]} {[%emt 00:02:02]} 40. Ke2 {[%clk 00:59:24]} {[%emt 00:00:25]} Kg7
{[%clk 01:02:36]} {[%emt 00:00:20]} 41. Kd3 {[%clk 00:58:39]} {[%emt 00:01:16]}
Kf6 {[%clk 01:02:31]} {[%emt 00:00:35]} 42. Ke4 {[%clk 00:57:52]} {[%emt
00:01:16]} Ke6 {[%clk 01:02:42]} {[%emt 00:00:20]} 43. Rxd4 {[%clk 00:57:31]}
{[%emt 00:00:51]} Rxd4+ {[%clk 01:03:04]} {[%emt 00:00:07]} 44. Kxd4 {[%clk
00:57:52]} {[%emt 00:00:09]} Kd6 {[%clk 01:02:51]} {[%emt 00:00:44]} 45. f4
{[%clk 00:57:37]} {[%emt 00:00:45]} b5 {[%clk 01:02:49]} {[%emt 00:00:32]}
1/2-1/2

[Event "NJSK 2024 Cm"]
[Site "Groningen, Netherlands"]
[Date "2024.04.29"]
[Round "3.5"]
[White "Regterschot, Frederieke"]
[Black "Vermeulen, Ilona"]
[Result "0-1"]
[TimeControl "90min/40moves + 30min + 30sec/move"]
[WhiteElo "1292"]
[BlackElo "1427"]

1. d4 {[%clk 01:30:58]} {[%emt 00:00:02]} d5 {[%clk 01:30:55]} {[%emt
00:00:05]} 2. c4 {[%clk 01:31:21]} {[%emt 00:00:08]} e6 {[%clk 01:31:15]}
{[%emt 00:00:10]} 3. Nc3 {[%clk 01:31:43]} {[%emt 00:00:08]} Bb4 {[%clk
01:29:50]} {[%emt 00:01:54]} 4. Nf3 {[%clk 01:31:38]} {[%emt 00:00:35]} Nf6
{[%clk 01:28:14]} {[%emt 00:02:06]} 5. Qa4+ {[%clk 01:31:18]} {[%emt 00:00:50]}
Nc6 {[%clk 01:24:47]} {[%emt 00:03:58]} 6. cxd5 {[%clk 01:30:52]} {[%emt
00:00:55]} Bxc3+ {[%clk 01:24:59]} {[%emt 00:00:18]} 7. bxc3 {[%clk 01:31:10]}
{[%emt 00:00:12]} Qxd5 {[%clk 01:19:13]} {[%emt 00:06:17]} 8. e3 {[%clk
01:30:50]} {[%emt 00:00:49]} O-O {[%clk 01:16:32]} {[%emt 00:03:12]} 9. Bd3
{[%clk 01:30:22]} {[%emt 00:00:57]} Re8 {[%clk 01:11:57]} {[%emt 00:05:05]} 10.
O-O {[%clk 01:27:06]} {[%emt 00:03:46]} Bd7 {[%clk 01:07:28]} {[%emt 00:04:59]}
11. Qc2 {[%clk 01:26:37]} {[%emt 00:00:59]} g6 {[%clk 01:05:22]} {[%emt
00:02:36]} 12. e4 {[%clk 01:24:52]} {[%emt 00:02:14]} Qh5 {[%clk 01:01:10]}
{[%emt 00:04:35]} 13. Rb1 {[%clk 01:24:28]} {[%emt 00:01:01]} Na5 {[%clk
00:56:55]} {[%emt 00:04:46]} 14. Ne5 {[%clk 01:22:56]} {[%emt 00:02:01]} Ng4
{[%clk 00:54:15]} {[%emt 00:03:11]} 15. Nxg4 {[%clk 01:22:24]} {[%emt
00:01:03]} Qxg4 {[%clk 00:54:05]} {[%emt 00:00:39]} 16. f3 {[%clk 01:20:35]}
{[%emt 00:02:18]} Qh4 {[%clk 00:50:55]} {[%emt 00:03:41]} 17. Be3 {[%clk
01:20:10]} {[%emt 00:00:55]} e5 {[%clk 00:48:29]} {[%emt 00:02:56]} 18. Bf2
{[%clk 01:20:11]} {[%emt 00:00:30]} Qf6 {[%clk 00:45:26]} {[%emt 00:03:32]} 19.
d5 {[%clk 01:15:46]} {[%emt 00:04:55]} c6 {[%clk 00:44:20]} {[%emt 00:01:36]}
20. c4 {[%clk 01:14:41]} {[%emt 00:01:35]} cxd5 {[%clk 00:41:04]} {[%emt
00:03:46]} 21. cxd5 {[%emt 00:04:09]} Rac8 {[%clk 00:37:44]} 22. Qe2 {[%clk
01:13:24]} {[%emt 00:01:58]} b6 {[%clk 00:36:01]} {[%emt 00:02:14]} 23. Ba6
{[%clk 01:11:19]} {[%emt 00:02:35]} Rb8 {[%clk 00:33:40]} {[%emt 00:02:51]} 24.
Rfc1 {[%clk 01:11:09]} {[%emt 00:00:39]} Bc8 {[%clk 00:31:56]} {[%emt
00:02:14]} 25. Rc7 {[%clk 01:09:50]} {[%emt 00:01:49]} Bxa6 {[%clk 00:30:51]}
{[%emt 00:01:35]} 26. Qxa6 {[%clk 01:09:11]} {[%emt 00:01:09]} Re7 {[%clk
00:28:54]} {[%emt 00:02:27]} 27. Qxa7 {[%clk 01:06:27]} {[%emt 00:03:14]} Rb7
{[%clk 00:26:57]} {[%emt 00:02:28]} 28. Qa8+ {[%clk 01:04:28]} {[%emt
00:02:29]} Kg7 {[%clk 00:26:19]} {[%emt 00:01:08]} 29. Rxe7 {[%clk 01:04:11]}
{[%emt 00:00:46]} Qxe7 {[%clk 00:24:04]} {[%emt 00:02:44]} 30. Qa6 {[%clk
01:01:39]} {[%emt 00:03:03]} Ra7 {[%clk 00:18:58]} {[%emt 00:05:36]} 31. Qe2
{[%clk 01:00:49]} {[%emt 00:01:20]} Rb7 {[%clk 00:17:11]} {[%emt 00:02:18]} 32.
Rxb6 {[%clk 01:00:52]} {[%emt 00:00:26]} Rxb6 {[%clk 00:16:46]} {[%emt
00:00:55]} 33. Bxb6 {[%clk 01:01:09]} {[%emt 00:00:13]} Nb7 {[%clk 00:16:25]}
{[%emt 00:00:52]} 34. a4 {[%clk 01:00:41]} {[%emt 00:00:58]} Qb4 {[%clk
00:15:23]} {[%emt 00:01:31]} 35. Bc7 {[%clk 00:59:03]} {[%emt 00:02:08]} Qc5+
{[%clk 00:15:21]} {[%emt 00:00:32]} 36. Kf1 {[%clk 00:58:58]} {[%emt 00:00:35]}
Qxc7 {[%clk 00:15:31]} {[%emt 00:00:20]} 37. Qd1 {[%clk 00:58:23]} {[%emt
00:01:03]} Nd6 {[%clk 00:14:48]} {[%emt 00:01:16]} 38. Kf2 {[%clk 00:58:38]}
{[%emt 00:00:15]} Qa7+ {[%clk 00:14:29]} {[%emt 00:00:47]} 39. Kg3 {[%clk
00:58:55]} {[%emt 00:00:14]} f5 {[%clk 00:14:22]} {[%emt 00:00:37]} 40. Qc2
{[%clk 00:56:49]} {[%emt 00:02:35]} f4+ {[%clk 00:14:17]} {[%emt 00:00:36]} 41.
Kh3 {[%clk 00:55:28]} {[%emt 00:01:51]} Qd7+ {[%clk 00:13:40]} {[%emt
00:01:07]} 42. g4 {[%clk 00:55:42]} {[%emt 00:00:17]} g5 {[%clk 00:11:54]}
{[%emt 00:02:16]} 43. a5 {[%clk 00:54:48]} {[%emt 00:01:24]} Qb5 {[%clk
00:11:06]} {[%emt 00:01:18]} 44. Qc7+ {[%clk 00:52:51]} {[%emt 00:02:26]} Kg8
{[%clk 00:10:09]} {[%emt 00:01:27]} 45. Qd8+ {[%clk 00:51:51]} {[%emt
00:01:30]} Kf7 {[%clk 00:08:51]} {[%emt 00:01:48]} 46. Qc7+ {[%clk 00:51:22]}
{[%emt 00:00:59]} Ke8 {[%clk 00:08:11]} {[%emt 00:01:11]} 47. Kg2 {[%clk
00:51:11]} {[%emt 00:00:40]} Qe2+ {[%clk 00:08:04]} {[%emt 00:00:37]} 48. Kg1
{[%clk 00:51:30]} {[%emt 00:00:10]} Qe3+ {[%clk 00:08:13]} {[%emt 00:00:23]} 49.
Kg2 {[%clk 00:51:40]} {[%emt 00:00:19]} Qe2+ {[%clk 00:08:23]} {[%emt
00:00:19]} 50. Kg1 {[%clk 00:51:57]} {[%emt 00:00:14]} Qe1+ {[%clk 00:08:27]}
{[%emt 00:00:26]} 51. Kg2 {[%clk 00:52:10]} {[%emt 00:00:17]} Qd2+ {[%clk
00:08:27]} {[%emt 00:00:26]} 52. Kf1 {[%clk 00:50:45]} {[%emt 00:01:59]} Qd3+
{[%clk 00:08:35]} {[%emt 00:00:22]} 53. Ke1 {[%clk 00:50:55]} {[%emt 00:00:20]}
Qe3+ {[%clk 00:08:51]} {[%emt 00:00:14]} 54. Kd1 {[%clk 00:51:00]} {[%emt
00:00:23]} Qxf3+ {[%clk 00:09:13]} {[%emt 00:00:11]} 55. Kc1 {[%clk 00:50:56]}
{[%emt 00:00:34]} Qa3+ {[%clk 00:09:15]} {[%emt 00:00:27]} 56. Kc2 {[%clk
00:49:38]} {[%emt 00:01:49]} Qa4+ {[%clk 00:09:20]} {[%emt 00:00:25]} 57. Kc1
{[%clk 00:48:47]} {[%emt 00:01:19]} Qa3+ {[%clk 00:09:27]} {[%emt 00:00:25]} 58.
Kc2 {[%clk 00:48:27]} {[%emt 00:00:49]} Qa2+ {[%clk 00:09:32]} {[%emt
00:00:26]} 59. Kc1 {[%clk 00:48:17]} {[%emt 00:00:40]} Qa1+ {[%clk 00:06:19]}
{[%emt 00:03:43]} 60. Kc2 {[%clk 00:48:18]} {[%emt 00:00:29]} Qa2+ {[%clk
00:06:34]} {[%emt 00:00:15]} 61. Kd1 {[%clk 00:48:26]} {[%emt 00:00:21]} Qa4+
{[%clk 00:05:52]} {[%emt 00:01:12]} 62. Kd2 {[%clk 00:46:38]} {[%emt 00:02:19]}
Nxe4+ {[%clk 00:05:48]} {[%emt 00:00:35]} 63. Kd3 {[%clk 00:45:07]} {[%emt
00:02:00]} Qd4+ {[%clk 00:06:02]} {[%emt 00:00:16]} 64. Ke2 {[%clk 00:43:56]}
{[%emt 00:01:42]} Qd2+ {[%clk 00:06:12]} {[%emt 00:00:20]} 65. Kf3 {[%clk
00:44:05]} {[%emt 00:00:21]} Qe3+ {[%clk 00:06:34]} {[%emt 00:00:08]} 66. Kg2
{[%clk 00:44:15]} {[%emt 00:00:19]} Qf2+ {[%clk 00:06:37]} {[%emt 00:00:27]} 67.
Kh3 {[%clk 00:44:18]} {[%emt 00:00:27]} Qf1# {[%clk 00:06:37]} {[%emt
00:00:31]} 0-1

[Event "NJSK 2024 Cm"]
[Site "Groningen, Netherlands"]
[Date "2024.04.29"]
[Round "3.6"]
[White "Esvelt, Klio"]
[Black "Schipper, Sarah"]
[Result "1-0"]
[TimeControl "90min/40moves + 30min + 30sec/move"]
[WhiteElo "1353"]
[BlackElo "1238"]

1. e4 {[%clk 01:30:58]} {[%emt 00:00:02]} e5 {[%clk 01:30:56]} {[%emt
00:00:05]} 2. Nf3 {[%clk 01:31:26]} {[%emt 00:00:02]} Nc6 {[%clk 01:31:11]}
{[%emt 00:00:15]} 3. d4 {[%clk 01:31:53]} {[%emt 00:00:03]} exd4 {[%clk
01:31:15]} {[%emt 00:00:25]} 4. Nxd4 {[%clk 01:32:19]} {[%emt 00:00:04]} Nxd4
{[%clk 01:31:38]} {[%emt 00:00:08]} 5. Qxd4 {[%clk 01:32:46]} {[%emt 00:00:03]}
Ne7 {[%clk 01:31:36]} {[%emt 00:00:32]} 6. Bc4 {[%clk 01:32:58]} {[%emt
00:00:16]} Nc6 {[%clk 01:29:40]} {[%emt 00:02:28]} 7. Qd5 {[%clk 01:32:24]}
{[%emt 00:01:02]} Qe7 {[%clk 01:26:08]} {[%emt 00:04:04]} 8. Bg5 {[%clk
01:31:09]} {[%emt 00:01:23]} f6 {[%clk 01:25:02]} {[%emt 00:01:58]} 9. Bf4
{[%emt 00:00:40]} d6 {[%clk 01:23:37]} {[%emt 00:01:43]} 10. Nc3 {[%clk
01:29:56]} {[%emt 00:01:28]} Nb4 {[%clk 01:15:29]} {[%emt 00:08:55]} 11. Qb5+
{[%clk 01:29:48]} {[%emt 00:00:38]} Nc6 {[%clk 01:14:17]} {[%emt 00:01:42]} 12.
Qh5+ {[%clk 01:28:02]} {[%emt 00:01:33]} g6 {[%clk 01:09:40]} {[%emt 00:05:50]}
13. Qf3 {[%clk 01:28:01]} {[%emt 00:00:09]} f5 {[%clk 01:06:41]} {[%emt
00:03:50]} 14. O-O-O {[%clk 01:27:58]} {[%emt 00:00:32]} Bg7 {[%clk 00:57:23]}
{[%emt 00:09:50]} 15. Rhe1 {[%clk 01:28:00]} {[%emt 00:00:29]} Ne5 {[%clk
00:53:13]} {[%emt 00:04:39]} 16. Bxe5 {[%clk 01:28:09]} {[%emt 00:00:20]} Bxe5
{[%clk 00:52:01]} {[%emt 00:01:43]} 17. exf5 {[%clk 01:28:30]} {[%emt
00:00:09]} gxf5 {[%clk 00:51:25]} {[%emt 00:01:05]} 18. Bd3 {[%clk 01:28:13]}
{[%emt 00:00:32]} Qf6 {[%clk 00:50:28]} {[%emt 00:01:43]} 19. g4 {[%clk
01:27:29]} {[%emt 00:01:13]} Qg5+ {[%clk 00:47:38]} {[%emt 00:03:21]} 20. Kb1
{[%clk 01:26:36]} {[%emt 00:01:22]} Qxg4 {[%clk 00:43:20]} {[%emt 00:04:49]} 21.
Qxg4 {[%clk 01:26:48]} {[%emt 00:00:17]} fxg4 {[%clk 00:43:33]} {[%emt
00:00:18]} 22. Nd5 {[%clk 01:27:09]} {[%emt 00:00:09]} Kd7 {[%clk 00:40:42]}
{[%emt 00:03:21]} 23. Bf5+ {[%clk 01:26:52]} {[%emt 00:00:30]} Kc6 {[%clk
00:38:18]} {[%emt 00:03:10]} 24. Ne7+ {[%clk 01:26:56]} {[%emt 00:00:25]} Kb6
{[%clk 00:34:13]} {[%emt 00:04:37]} 25. Nxc8+ {[%clk 01:27:11]} {[%emt
00:00:15]} Raxc8 {[%clk 00:33:30]} {[%emt 00:01:13]} 26. Bxc8 {[%clk 01:27:30]}
{[%emt 00:00:11]} Rxc8 {[%clk 00:33:57]} {[%emt 00:00:03]} 27. Re4 {[%clk
01:27:23]} {[%emt 00:00:26]} h5 {[%clk 00:33:05]} {[%emt 00:01:32]} 28. Rd3
{[%clk 01:27:44]} {[%emt 00:00:08]} a6 {[%clk 00:32:58]} {[%emt 00:00:38]} 29.
Rb4+ {[%clk 01:27:38]} {[%emt 00:00:30]} Ka7 {[%clk 00:33:05]} {[%emt
00:00:30]} 30. Rdb3 {[%clk 01:27:45]} {[%emt 00:00:22]} b6 {[%clk 00:32:18]}
{[%emt 00:01:18]} 31. h3 {[%clk 01:27:55]} {[%emt 00:00:18]} Re8 {[%clk
00:30:44]} {[%emt 00:02:06]} 32. hxg4 {[%clk 01:27:57]} {[%emt 00:00:27]} hxg4
{[%clk 00:29:22]} {[%emt 00:01:53]} 33. Rxg4 {[%clk 01:28:20]} {[%emt
00:00:06]} Bg3 {[%clk 00:28:09]} {[%emt 00:01:44]} 34. a3 {[%clk 01:28:41]}
{[%emt 00:00:09]} Bxf2 {[%clk 00:28:13]} {[%emt 00:00:26]} 35. Rf4 {[%clk
01:28:33]} {[%emt 00:00:24]} Bc5 {[%clk 00:26:16]} {[%emt 00:02:41]} 36. Rf7
{[%clk 01:28:44]} {[%emt 00:00:13]} Kb7 {[%clk 00:26:38]} {[%emt 00:00:14]} 37.
Rh3 {[%clk 01:28:50]} {[%emt 00:00:17]} b5 {[%clk 00:24:16]} {[%emt 00:02:59]}
38. Rh4 {[%clk 01:27:05]} {[%emt 00:01:56]} Kb6 {[%clk 00:19:09]} {[%emt
00:05:56]} 39. b4 {[%clk 01:25:30]} {[%emt 00:02:05]} Be3 {[%clk 00:17:56]}
{[%emt 00:01:43]} 40. Rhh7 {[%clk 01:25:31]} {[%emt 00:00:27]} Rc8 {[%clk
00:16:29]} {[%emt 00:01:59]} 41. Re7 {[%clk 01:25:00]} {[%emt 00:00:54]} Bf4
{[%clk 00:15:58]} {[%emt 00:01:08]} 42. Rhf7 {[%clk 01:24:12]} {[%emt
00:01:08]} Bd2 {[%clk 00:14:53]} {[%emt 00:01:44]} 43. Kb2 {[%clk 01:23:34]}
{[%emt 00:01:03]} a5 {[%clk 00:15:01]} {[%emt 00:00:28]} 44. Re2 {[%clk
01:23:25]} {[%emt 00:00:33]} Bg5 {[%clk 00:14:11]} {[%emt 00:01:25]} 45. Kb3
{[%clk 01:22:05]} {[%emt 00:01:51]} Rh8 {[%clk 00:14:13]} {[%emt 00:00:28]} 46.
bxa5+ {[%clk 01:21:56]} {[%emt 00:00:38]} Kxa5 {[%clk 00:14:05]} {[%emt
00:00:38]} 47. Rxc7 {[%clk 01:22:21]} {[%emt 00:00:05]} Rh3+ {[%clk 00:13:23]}
{[%emt 00:01:13]} 48. c3 {[%clk 01:21:55]} {[%emt 00:00:55]} Kb6 {[%clk
00:12:52]} {[%emt 00:01:01]} 49. Rf7 {[%clk 01:21:40]} {[%emt 00:00:37]} Rh4
{[%clk 00:12:05]} {[%emt 00:01:25]} 50. Re6 {[%clk 01:20:06]} {[%emt 00:02:03]}
Kc6 {[%clk 00:10:44]} {[%emt 00:01:53]} 51. Rg7 {[%clk 01:20:17]} {[%emt
00:00:16]} Bf4 {[%clk 00:10:26]} {[%emt 00:00:51]} 52. Rgg6 {[%clk 01:19:32]}
{[%emt 00:01:12]} Rh2 {[%clk 00:08:45]} {[%emt 00:02:13]} 53. Ref6 {[%clk
01:19:04]} {[%emt 00:00:42]} Be5 {[%clk 00:08:39]} {[%emt 00:00:54]} 54. Rf8
{[%clk 01:19:03]} {[%emt 00:00:19]} Rh4 {[%clk 00:08:34]} {[%emt 00:00:46]} 55.
Rc8+ {[%clk 01:18:57]} {[%emt 00:00:28]} Kd5 {[%clk 00:08:34]} {[%emt
00:00:38]} 56. Rg2 {[%clk 01:17:34]} {[%emt 00:00:49]} Rf4 {[%clk 00:07:41]}
{[%emt 00:02:26]} 57. Rd2+ {[%clk 01:17:09]} {[%emt 00:00:12]} Ke6 {[%emt
00:02:09]} 58. Re8+ {[%clk 01:17:00]} {[%emt 00:00:21]} Kd7 {[%clk 00:07:05]}
{[%emt 00:00:29]} 59. Rg8 {[%clk 01:16:28]} {[%emt 00:00:47]} Rc4 {[%clk
00:06:09]} {[%emt 00:01:38]} 60. Rd3 {[%clk 01:15:24]} {[%emt 00:00:51]} Ke6
{[%clk 00:05:46]} {[%emt 00:01:39]} 61. Re8+ {[%clk 01:14:58]} {[%emt
00:00:54]} Kd7 {[%clk 00:06:03]} {[%emt 00:00:15]} 62. Rb8 {[%clk 01:14:32]}
{[%emt 00:00:32]} Rc5 {[%clk 00:04:32]} {[%emt 00:02:24]} 63. Ra8 {[%clk
01:13:59]} {[%emt 00:00:55]} Kc7 {[%clk 00:04:20]} {[%emt 00:00:50]} 64. Ra7+
{[%clk 01:12:30]} {[%emt 00:01:52]} Kc6 {[%clk 00:04:33]} {[%emt 00:00:24]} 65.
Rf7 {[%clk 01:11:42]} {[%emt 00:01:18]} Kb6 {[%clk 00:04:37]} {[%emt 00:00:27]}
66. Rf8 {[%clk 01:10:57]} {[%emt 00:01:01]} Kc7 {[%clk 00:05:00]} {[%emt
00:00:21]} 67. Ra8 {[%clk 01:11:03]} {[%emt 00:00:23]} Kb7 {[%clk 00:05:18]}
{[%emt 00:00:12]} 68. Rg8 {[%clk 01:10:49]} {[%emt 00:00:41]} Kc6 {[%clk
00:05:46]} {[%emt 00:00:06]} 69. Rg4 {[%clk 01:10:37]} {[%emt 00:00:31]} Kd7
{[%clk 00:05:52]} {[%emt 00:00:34]} 70. Rb4 {[%clk 01:10:34]} {[%emt 00:00:25]}
Kc6 {[%clk 00:06:08]} {[%emt 00:00:22]} 71. a4 {[%clk 01:10:24]} {[%emt
00:00:40]} bxa4+ {[%clk 00:06:18]} {[%emt 00:00:20]} 72. Rxa4 {[%clk 01:10:48]}
{[%emt 00:00:06]} Rb5+ {[%clk 00:06:33]} {[%emt 00:00:16]} 73. Rb4 {[%clk
01:11:03]} {[%emt 00:00:07]} Rc5 {[%clk 00:06:57]} {[%emt 00:00:13]} 74. Rc4
{[%clk 01:11:11]} {[%emt 00:00:23]} Rxc4 {[%clk 00:07:00]} {[%emt 00:00:27]} 75.
Kxc4 {[%clk 01:11:34]} {[%emt 00:00:04]} Bf6 {[%clk 00:07:16]} {[%emt
00:00:16]} 76. Kb4 {[%clk 01:11:47]} {[%emt 00:00:10]} d5 {[%clk 00:07:42]}
{[%emt 00:00:12]} 77. Rf3 {[%clk 01:11:28]} {[%emt 00:00:47]} Be5 {[%clk
00:07:47]} {[%emt 00:00:27]} 78. Rf5 {[%clk 01:11:13]} {[%emt 00:00:41]} Bd6+
{[%clk 00:08:08]} {[%emt 00:00:13]} 79. Kb3 {[%clk 01:11:08]} {[%emt 00:00:25]}
Kc5 {[%clk 00:08:31]} {[%emt 00:00:17]} 80. c4 {[%clk 01:11:07]} {[%emt
00:00:31]} Be7 {[%clk 00:07:55]} {[%emt 00:01:06]} 81. cxd5 {[%clk 01:11:26]}
{[%emt 00:00:10]} Bd6 {[%clk 00:08:10]} {[%emt 00:00:15]} 82. Kc3 {[%clk
01:11:44]} {[%emt 00:00:11]} Be7 {[%clk 00:08:26]} {[%emt 00:00:16]} 83. Kd3
{[%clk 01:11:58]} {[%emt 00:00:16]} Bd6 {[%clk 00:07:42]} {[%emt 00:01:14]} 84.
Ke4 {[%clk 01:12:17]} {[%emt 00:00:10]} Kb6 {[%clk 00:07:51]} {[%emt 00:00:22]}
85. Rf6 {[%clk 01:12:26]} {[%emt 00:00:18]} Kc7 {[%clk 00:07:40]} {[%emt
00:00:43]} 86. Kf5 {[%clk 01:12:41]} {[%emt 00:00:15]} Kd7 {[%clk 00:07:38]}
{[%emt 00:00:32]} 87. Rf7+ {[%clk 01:12:58]} {[%emt 00:00:13]} Kd8 {[%clk
00:07:46]} {[%emt 00:00:22]} 88. Ke6 {[%clk 01:13:23]} {[%emt 00:00:05]} Bc7
{[%clk 00:07:56]} {[%emt 00:00:21]} 89. d6 {[%clk 01:13:26]} {[%emt 00:00:27]}
Bb6 {[%clk 00:08:02]} {[%emt 00:00:23]} 90. d7 {[%clk 01:13:13]} {[%emt
00:00:38]} Bc5 {[%clk 00:07:00]} {[%emt 00:01:38]} 91. Kd5 {[%clk 01:13:31]}
{[%emt 00:00:11]} Ba3 {[%clk 00:07:16]} {[%emt 00:00:14]} 92. Kc6 {[%clk
01:13:56]} {[%emt 00:00:06]} Bb4 {[%clk 00:07:33]} {[%emt 00:00:12]} 93. Rg7
{[%clk 01:14:15]} {[%emt 00:00:09]} Ba5 {[%clk 00:07:39]} {[%emt 00:00:26]} 94.
Rg5 {[%clk 01:13:55]} {[%emt 00:00:43]} Bc7 {[%clk 00:07:09]} {[%emt 00:01:07]}
95. Rg4 {[%clk 01:13:58]} {[%emt 00:00:21]} Ba5 {[%clk 00:07:03]} {[%emt
00:00:43]} 96. Re4 {[%clk 01:14:20]} {[%emt 00:00:05]} Bb4 {[%clk 00:06:33]}
{[%emt 00:01:03]} 97. Re8# {[%clk 01:14:46]} {[%emt 00:00:04]} 1-0